bitfinex/quotes_SOLUSD_20250802
["timestamp","ask_amount","ask_price","bid_price","bid_amount"]
[1754158012774,26.78468397,159.65,159.64,0.06]
[1754158012933,100.97722932,159.65,159.64,0.06]
[1754158013263,107.95093116,159.65,159.64,0.06]
[1754158013572,16.78468397,159.64,159.63,0.06]
[1754158013767,26.78468397,159.63,159.62,0.2]
[1754158014064,109.81793109,159.63,159.62,0.2]
[1754158014256,110.52793109,159.63,159.62,0.2]
[1754158014457,106.75423707,159.63,159.62,0.2]
[1754158014651,106.75418113,159.63,159.62,0.2]
[1754158014957,101.68722932,159.63,159.62,0.2]
[1754158015268,36.78468397,159.61,159.57,0.06]
[1754158015561,116.03764405,159.61,159.57,0.06]
[1754158015776,116.74764405,159.61,159.57,0.06]
[1754158016743,101.68722932,159.61,159.57,0.06]
[1754158016942,111.68722932,159.61,159.57,0.06]
[1754158017567,111.66246076,159.61,159.57,0.06]
[1754158018767,101.68246076,159.61,159.57,0.06]
[1754158019976,52.78468397,159.58,159.57,0.06]
[1754158020277,61.969152,159.58,159.57,0.06]
[1754158020485,31.90292379,159.58,159.57,19.28330876]
[1754158020774,56.5,159.58,159.57,18.56330876]
[1754158020983,75.00330876,159.58,159.57,0.06]
[1754158021144,61.61146687,159.58,159.57,0.06]
[1754158021349,10.0,159.58,159.57,18.56330876]
[1754158021575,56.5,159.58,159.57,0.06]
[1754158021753,15.10929719,159.58,159.57,19.27330876]
[1754158021966,10.0,159.61,159.57,19.27330876]
[1754158022278,10.0,159.61,159.6,18.50330876]
[1754158022473,56.5,159.61,159.6,19.21330876]
[1754158022640,56.5,159.61,159.59,18.50330876]
[1754158022840,10.0,159.59,159.57,18.56330876]
[1754158023059,0.62727386,159.6,159.57,0.06]
[1754158023060,56.5,159.58,159.57,0.06]
[1754158023273,56.5,159.58,159.57,18.56330876]
[1754158023692,46.5,159.6,159.57,19.27330876]
[1754158023875,46.5,159.6,159.59,18.50330876]
[1754158024083,46.5,159.6,159.59,19.21330876]
[1754158024287,56.5,159.6,159.59,19.21330876]
[1754158024655,56.5,159.6,159.57,0.06]
[1754158024656,10.0,159.58,159.57,18.56330876]
[1754158024850,56.5,159.58,159.57,18.56330876]
[1754158025049,56.5,159.58,159.57,0.06]
[1754158025669,56.5,159.58,159.57,19.27330876]
[1754158026292,10.0,159.58,159.57,19.27330876]
[1754158026699,10.62727386,159.58,159.57,0.06]
[1754158027061,51.09454287,159.58,159.57,0.06]
[1754158027762,50.39454287,159.58,159.57,0.06]
[1754158028085,27.41195783,159.58,159.57,0.06]
[1754158028489,50.39289167,159.58,159.57,0.06]
[1754158028677,51.09289167,159.58,159.57,0.06]
[1754158029396,55.12055856,159.58,159.57,0.06]
[1754158029564,63.96126033,159.58,159.57,0.06]
[1754158030261,80.22770975,159.58,159.57,0.06]
[1754158030560,36.78468397,159.56,159.55,0.06]
[1754158030769,109.76126033,159.56,159.55,0.06]
[1754158030973,120.46126033,159.56,159.55,0.06]
[1754158031166,54.4932847,159.56,159.55,0.06]
[1754158031370,83.1172498,159.56,159.55,0.06]
[1754158031569,101.62055856,159.56,159.55,0.06]
[1754158031784,83.1172498,159.56,159.55,0.06]
[1754158031988,104.38958291,159.56,159.55,0.06]
[1754158032378,83.12727386,159.56,159.55,18.56330876]
[1754158032598,83.12727386,159.56,159.55,0.77]
[1754158033271,83.12727386,159.56,159.55,19.27330876]
[1754158033272,57.12727386,159.56,159.55,19.27330876]
[1754158033494,56.5,159.56,159.55,19.27330876]
[1754158033906,57.12727386,159.56,159.55,19.27330876]
[1754158034082,57.12727386,159.56,159.55,0.06]
[1754158034692,36.62727386,159.56,159.55,0.06]
[1754158034894,57.12727386,159.56,159.55,19.27330876]
[1754158035469,57.12727386,159.56,159.55,0.06]
[1754158035674,93.11526659,159.56,159.55,0.06]
[1754158035897,97.5851941,159.56,159.55,0.06]
[1754158036098,96.8851941,159.56,159.55,0.06]
[1754158037403,97.5851941,159.56,159.55,0.06]
[1754158037579,96.8851941,159.56,159.55,0.06]
[1754158038687,97.5851941,159.56,159.55,0.06]
[1754158039303,101.60677434,159.56,159.55,0.06]
[1754158039610,129.98773193,159.56,159.55,0.06]
[1754158039793,129.36045807,159.56,159.55,0.06]
[1754158040291,129.36045807,159.56,159.5,0.2]
[1754158040292,26.78468397,159.51,159.5,0.2]
[1754158040491,26.78468397,159.51,159.47,0.2]
[1754158040492,26.78468397,159.48,159.47,0.2]
[1754158040691,26.78468397,159.48,159.43,0.1]
[1754158040692,26.78468397,159.44,159.43,0.1]
[1754158041016,109.74232485,159.44,159.43,0.1]
[1754158041214,110.44232485,159.44,159.43,0.1]
[1754158041583,63.94232485,159.44,159.43,0.1]
[1754158041796,105.98188822,159.44,159.43,0.1]
[1754158042183,54.40162308,159.44,159.43,0.1]
[1754158042391,100.90162308,159.44,159.43,0.1]
[1754158042614,78.39673408,159.44,159.43,0.1]
[1754158042918,96.90004284,159.44,159.43,0.1]
[1754158043098,61.61205011,159.44,159.43,0.1]
[1754158043415,15.09205011,159.44,159.43,19.31330876]
[1754158043619,96.25276898,159.44,159.43,0.1]
[1754158043831,77.74946022,159.44,159.43,0.1]
[1754158044134,96.25276898,159.44,159.43,0.1]
[1754158044501,77.74946022,159.44,159.43,0.1]
[1754158044687,60.96477625,159.44,159.43,0.81]
[1754158045223,60.96477625,159.44,159.43,19.31330876]
[1754158046403,14.46477625,159.44,159.43,19.31330876]
[1754158046621,46.52,159.44,159.43,0.81]
[1754158046829,56.52,159.44,159.43,19.31330876]
[1754158047203,46.52,159.44,159.43,19.31330876]
[1754158047419,56.52,159.44,159.43,19.31330876]
[1754158048093,60.9731022,159.44,159.43,0.1]
[1754158048495,61.60037606,159.44,159.43,0.1]
[1754158048734,80.10368482,159.44,159.43,0.1]
[1754158049100,96.88836879,159.44,159.43,0.1]
[1754158049733,97.58836879,159.44,159.43,0.1]
[1754158049910,101.59781717,159.44,159.43,0.1]
[1754158050602,101.59781717,159.44,159.41,0.2]
[1754158050603,10.0,159.36,159.35,0.57]
[1754158050803,10.0,159.35,159.34,0.1]
[1754158051031,10.62727386,159.35,159.34,0.1]
[1754158051331,45.91526659,159.35,159.34,0.1]
[1754158051701,14.63685709,159.35,159.34,0.1]
[1754158051893,73.30468397,159.35,159.34,0.1]
[1754158052103,57.14727386,159.35,159.34,0.1]
[1754158052625,10.0,159.35,159.34,19.30330876]
[1754158052827,56.52,159.35,159.34,19.30330876]
[1754158053529,56.52,159.35,159.34,0.8]
[1754158053700,56.52,159.35,159.34,19.30330876]
[1754158054843,10.0,159.35,159.34,19.30330876]
[1754158055199,10.62727386,159.35,159.34,0.1]
[1754158055539,10.62727386,159.35,159.34,19.30330876]
[1754158055540,9.28,159.35,159.34,19.30330876]
[1754158055721,8.16,159.35,159.34,19.30330876]
[1754158056248,12.62597475,159.35,159.34,19.30330876]
[1754158057449,4.46597475,159.35,159.34,19.30330876]
[1754158057655,54.68,159.37,159.34,19.30330876]
[1754158057942,8.16,159.35,159.34,0.8]
[1754158058141,8.16,159.36,159.34,0.1]
[1754158058341,12.62569293,159.35,159.34,0.1]
[1754158058554,0.68,159.41,159.34,17.51227277]
[1754158058555,8.16,159.41,159.34,17.51227277]
[1754158058840,18.870892,159.5,159.34,17.51227277]
[1754158058841,8.16,159.45,159.36,16.78468397]
[1754158059009,8.16,159.41,159.38,18.50330876]
[1754158059197,46.52,159.44,159.4,18.50330876]
[1754158059501,54.68,159.44,159.43,18.50330876]
[1754158059699,59.1483778,159.44,159.43,18.50330876]
[1754158060134,63.84566673,159.44,159.43,18.50330876]
[1754158060443,59.1483778,159.44,159.43,18.50330876]
[1754158061618,12.6283778,159.44,159.43,18.50330876]
[1754158062232,12.62991235,159.44,159.43,18.50330876]
[1754158062553,12.6298725,159.44,159.43,18.50330876]
[1754158062906,8.16,159.44,159.43,18.50330876]
[1754158063133,12.62988671,159.44,159.43,18.50330876]
[1754158063304,13.25716057,159.44,159.43,18.50330876]
[1754158063634,13.25716057,159.44,159.42,18.50330876]
[1754158063635,8.16,159.43,159.42,18.50330876]
[1754158063807,8.16,159.43,159.37,0.62747066]
[1754158063808,8.16,159.42,159.41,18.50330876]
[1754158064002,12.62988671,159.42,159.34,0.7275888]
[1754158064204,8.16,159.39,159.35,16.78468397]
[1754158064421,8.16,159.39,159.38,18.50330876]
[1754158065103,8.16,159.35,159.34,0.1]
[1754158065302,54.66,159.35,159.34,18.60330876]
[1754158067217,8.16,159.35,159.34,18.60330876]
[1754158068863,9.46727386,159.35,159.34,0.1]
[1754158069074,13.93966398,159.35,159.34,0.1]
[1754158069349,13.93966398,159.35,159.32,0.06]
[1754158069350,24.94468397,159.33,159.32,0.06]
[1754158069515,8.16,159.28,159.27,0.1]
[1754158069704,80.68,159.28,159.27,0.1]
[1754158069912,81.36,159.28,159.27,0.1]
[1754158070125,85.83337741,159.28,159.27,0.1]
[1754158070436,85.83337741,159.28,159.27,18.60330876]
[1754158070437,12.63337741,159.28,159.27,18.60330876]
[1754158070636,12.63337741,159.28,159.27,18.86330876]
[1754158070934,8.16,159.28,159.27,18.60330876]
[1754158072343,8.16,159.29,159.27,18.60330876]
[1754158072544,8.16,159.28,159.27,0.1]
[1754158072714,8.16,159.28,159.27,18.60330876]
[1754158073719,39.94153438,159.28,159.27,0.1]
[1754158074442,12.63426052,159.28,159.27,18.60330876]
[1754158074849,12.63468337,159.28,159.27,0.1]
[1754158075056,12.63468337,159.28,159.27,18.60330876]
[1754158075419,8.16,159.31,159.27,18.86330876]
[1754158075722,8.20000005,159.33,159.3,18.50330876]
[1754158075934,8.20000005,159.33,159.32,18.50330876]
[1754158076561,13.355697,159.33,159.28,0.62782521]
[1754158076760,13.355697,159.33,159.32,18.50330876]
[1754158076761,8.20000005,159.33,159.32,18.50330876]
[1754158079038,8.20000005,159.33,159.3,0.62774639]
[1754158079039,12.68324317,159.33,159.3,0.62774639]
[1754158079228,8.20000005,159.33,159.32,18.50330876]
[1754158079425,4.52655453,159.33,159.32,18.50330876]
[1754158079628,8.20000005,159.33,159.32,18.50330876]
[1754158079848,12.68685039,159.33,159.32,18.50330876]
[1754158080058,0.04000005,159.33,159.32,18.50330876]
[1754158080224,0.04000005,159.33,159.32,44.50330876]
[1754158080425,4.53035297,159.33,159.32,44.50330876]
[1754158080635,0.04000005,159.33,159.32,18.76330876]
[1754158081130,4.52996049,159.33,159.32,18.50330876]
[1754158081646,0.04000005,159.33,159.32,18.50330876]
[1754158081967,4.53290679,159.33,159.32,18.50330876]
[1754158082177,4.53290679,159.33,159.32,44.50330876]
[1754158082682,4.53290679,159.33,159.32,18.50330876]
[1754158082683,17.44921975,159.33,159.32,18.50330876]
[1754158082889,17.44921975,159.33,159.27,0.1]
[1754158082890,8.16,159.32,159.31,18.50330876]
[1754158083041,8.16,159.31,159.21,45.39920554]
[1754158083235,8.16,159.31,159.3,18.50330876]
[1754158083438,13.37135891,159.31,159.3,18.50330876]
[1754158083872,8.16,159.29,159.28,18.50330876]
[1754158084072,13.37135891,159.29,159.22,0.31422756]
[1754158084280,46.52,159.31,159.22,0.31422756]
[1754158084281,8.16,159.26,159.22,0.31422756]
[1754158084480,8.16,159.22,159.18,0.84603971]
[1754158084687,55.43,159.26,159.21,18.50330876]
[1754158084858,4.50235013,159.25,159.18,1.16129271]
[1754158085056,46.56,159.26,159.24,18.50330876]
[1754158085391,8.16,159.26,159.2,0.31477962]
[1754158085548,8.16,159.24,159.2,0.31477962]
[1754158085751,8.16,159.24,159.19,26.0]
[1754158085950,46.6,159.25,159.18,0.84603971]
[1754158085951,13.37199816,159.23,159.18,0.84603971]
[1754158086150,8.16,159.21,159.18,0.84603971]
[1754158086381,8.16,159.19,159.18,0.84603971]
[1754158086542,13.36738634,159.19,159.09,0.31531239]
[1754158086747,0.78517587,159.2,159.09,0.31531239]
[1754158086748,8.16,159.11,159.09,18.50330876]
[1754158087055,8.16,159.08,159.07,18.893472]
[1754158087389,8.16,159.06,159.04,18.50330876]
[1754158087591,8.16,159.06,158.98,0.67]
[1754158087592,12.64030653,159.05,158.99,16.78468397]
[1754158087748,47.35,159.08,158.98,26.67]
[1754158087749,8.16,159.04,159.03,18.50330876]
[1754158087950,4.47952192,159.04,159.03,18.50330876]
[1754158088194,12.63952192,159.04,159.03,18.50330876]
[1754158088351,8.16,159.04,158.99,0.98689276]
[1754158088551,0.71,159.03,158.99,0.31689276]
[1754158088792,0.71,159.03,158.92,18.50330876]
[1754158088793,8.16,158.94,158.92,18.50330876]
[1754158089096,8.16,158.98,158.93,19.17330876]
[1754158089293,8.16,158.97,158.87,2.15796169]
[1754158089597,8.16,159.03,158.93,2.51]
[1754158089800,8.16,159.07,159.02,18.50330876]
[1754158089972,47.68576816,159.08,159.03,0.67]
[1754158089973,8.16,159.05,159.03,0.67]
[1754158090149,8.16,159.05,158.98,26.0]
[1754158090150,8.16,159.05,159.04,0.31675367]
[1754158090500,13.32305944,159.05,158.99,0.31675367]
[1754158090653,8.16,159.03,158.97,0.31701121]
[1754158090849,8.16,159.03,158.94,0.67]
[1754158090850,8.16,159.0,158.94,0.67]
[1754158091095,8.16,158.99,158.97,18.50330876]
[1754158091303,8.16,159.06,158.98,19.49065569]
[1754158091456,8.16,159.09,159.05,18.50330876]
[1754158091650,8.16,159.09,158.99,19.17330876]
[1754158091651,8.16,159.09,159.06,0.31647711]
[1754158091951,8.16,159.08,159.03,0.31647711]
[1754158092183,8.16,159.1,159.07,18.50330876]
[1754158092398,8.16,159.16,159.09,18.50330876]
[1754158092550,0.71,159.2,159.08,0.98631896]
[1754158092551,8.16,159.19,159.15,18.50330876]
[1754158092756,4.43726879,159.18,159.13,0.31554911]
[1754158092988,8.16,159.18,159.14,0.98560795]
[1754158093653,8.16,159.18,159.14,0.31560795]
[1754158093890,8.16,159.18,159.12,18.50330876]
[1754158093891,55.32,159.22,159.17,18.50330876]
[1754158094195,8.16,159.24,159.21,18.50330876]
[1754158094366,8.16,159.24,159.23,18.50330876]
[1754158094702,8.87,159.26,159.23,18.50330876]
[1754158094860,8.87,159.26,159.17,0.9850361]
[1754158094861,4.4389387,159.25,159.17,0.9850361]
[1754158095056,47.16,159.27,159.24,18.50330876]
[1754158095294,8.16,159.24,159.18,0.98477975]
[1754158095460,8.16,159.24,159.23,18.50330876]
[1754158095663,8.16,159.24,159.23,18.46330871]
[1754158096098,8.87,159.24,159.23,18.46330871]
[1754158096269,0.71,159.24,159.23,18.46330871]
[1754158096587,8.87,159.24,159.23,18.46330871]
[1754158096795,8.16,159.24,159.23,18.46330871]
[1754158097765,8.87,159.24,159.18,0.31477975]
[1754158097989,8.16,159.22,159.21,18.50330876]
[1754158098585,8.87,159.22,159.21,18.50330876]
[1754158099275,0.71,159.22,159.16,0.31493747]
[1754158099487,8.16,159.23,159.21,18.50330876]
[1754158099660,8.16,159.22,159.16,0.31493747]
[1754158100291,8.87,159.23,159.16,0.31493747]
[1754158100469,8.16,159.22,159.16,0.31493747]
[1754158100870,8.16,159.22,159.21,18.48330876]
[1754158101173,8.87,159.22,159.21,18.50330876]
[1754158101373,8.87,159.22,159.15,26.67]
[1754158101374,8.16,159.19,159.18,18.50330876]
[1754158101570,0.71,159.19,159.18,18.50330876]
[1754158101767,0.71,159.19,159.17,18.50330876]
[1754158101768,8.87,159.19,159.17,18.50330876]
[1754158101987,0.71,159.18,159.17,18.50330876]
[1754158102182,8.87,159.18,159.17,18.50330876]
[1754158102467,55.32,159.22,159.17,19.17330876]
[1754158102692,8.87,159.25,159.21,18.50330876]
[1754158102863,8.16,159.22,159.15,26.98525287]
[1754158103184,0.71,159.22,159.21,18.50330876]
[1754158103387,8.87,159.22,159.21,18.50330876]
[1754158103702,8.16,159.21,159.16,26.0]
[1754158103873,8.16,159.21,159.17,0.31539114]
[1754158104197,56.01,159.26,159.18,0.67]
[1754158104401,56.01,159.26,159.16,26.0]
[1754158104402,8.16,159.23,159.19,0.31503594]
[1754158104559,8.16,159.2,159.16,26.0]
[1754158104763,8.16,159.2,159.19,18.50330876]
[1754158105291,8.16,159.21,159.19,18.50330876]
[1754158105484,8.16,159.2,159.16,26.31533206]
[1754158105687,8.16,159.2,159.19,18.50330876]
[1754158106483,8.16,159.21,159.19,18.50330876]
[1754158106679,8.16,159.2,159.15,0.31533206]
[1754158106877,8.16,159.25,159.19,18.50330876]
[1754158107192,55.3,159.26,159.24,18.50330876]
[1754158107393,8.16,159.24,159.2,0.31501615]
[1754158107691,0.71,159.25,159.2,0.31501615]
[1754158107894,55.3,159.26,159.2,0.98501615]
[1754158108488,8.16,159.25,159.2,0.98501615]
[1754158108700,55.3,159.26,159.24,18.50330876]
[1754158108875,8.16,159.29,159.25,18.50330876]
[1754158109062,8.16,159.29,159.28,18.50330876]
[1754158109262,12.61418394,159.29,159.28,18.50330876]
[1754158109880,13.32418394,159.29,159.28,18.50330876]
[1754158110065,8.16,159.27,159.22,0.31446417]
[1754158110269,8.16,159.28,159.26,18.50330876]
[1754158110469,8.16,159.28,159.27,18.50330876]
[1754158110668,55.24,159.3,159.27,18.50330876]
[1754158110897,55.24,159.3,159.24,0.3145824]
[1754158110898,5.16404172,159.29,159.24,0.3145824]
[1754158111096,8.16,159.27,159.2,17.09926637]
[1754158111273,8.16,159.26,159.2,26.3145824]
[1754158111484,8.16,159.25,159.2,0.3145824]
[1754158111877,8.82,159.24,159.2,0.3145824]
[1754158112081,8.82,159.24,159.18,0.3150162]
[1754158112282,8.16,159.23,159.18,0.3150162]
[1754158112504,8.16,159.23,159.22,18.50330876]
[1754158113917,8.82,159.23,159.13,18.503309]
[1754158114121,8.16,159.2,159.13,0.31547024]
[1754158114273,8.16,159.2,159.13,17.10015421]
[1754158115200,8.16,159.2,159.19,18.50330876]
[1754158116575,8.16,159.17,159.1,9.16541138]
[1754158116777,8.16,159.17,159.16,18.50330876]
[1754158116996,8.16,159.18,159.16,18.50330876]
[1754158117194,8.82,159.17,159.16,18.50330876]
[1754158117607,8.16,159.16,159.1,0.31560859]
[1754158117786,8.16,159.16,159.15,18.50330876]
[1754158117990,0.69,159.23,159.15,19.19330876]
[1754158118304,8.16,159.2,159.16,0.31533191]
[1754158118517,8.16,159.22,159.16,1.00533191]
[1754158118681,8.16,159.22,159.16,0.31533191]
[1754158118882,0.03,159.23,159.17,17.47468397]
[1754158119099,0.03,159.23,159.18,1.00521344]
[1754158119299,0.03,159.23,159.18,0.31521344]
[1754158119479,0.66,159.22,159.18,0.31521344]
[1754158119679,8.16,159.22,159.16,0.31521344]
[1754158119882,8.16,159.21,159.2,18.50330876]
[1754158120080,12.61722103,159.21,159.2,18.50330876]
[1754158120277,4.45722103,159.21,159.2,18.50330876]
[1754158120498,0.03,159.23,159.2,19.19330876]
[1754158120709,0.03,159.23,159.22,18.50330876]
[1754158120905,0.66,159.22,159.18,0.31503579]
[1754158121213,8.19,159.23,159.18,0.31503579]
[1754158121415,0.03,159.23,159.22,18.50330876]
[1754158121916,8.85,159.23,159.22,18.50330876]
[1754158122121,0.03,159.23,159.19,0.3150361]
[1754158122414,0.03,159.23,159.22,18.50330876]
[1754158124317,0.03,159.23,159.21,26.0]
[1754158124490,0.03,159.23,159.22,18.50330876]
[1754158125699,0.03,159.23,159.22,19.19330876]
[1754158125903,0.03,159.23,159.22,18.50330876]
[1754158126731,0.03,159.23,159.2,0.31495695]
[1754158127020,0.03,159.23,159.22,18.50330876]
[1754158127792,0.69,159.23,159.22,18.50330876]
[1754158128019,8.85,159.23,159.22,18.50330876]
[1754158128529,0.03,159.23,159.22,18.50330876]
[1754158128694,0.03,159.23,159.22,37.69661752]
[1754158128892,8.82,159.3,159.25,26.0]
[1754158129093,8.82,159.3,159.22,26.31493717]
[1754158129094,8.16,159.28,159.22,26.31493717]
[1754158129310,8.16,159.26,159.22,0.31493717]
[1754158129533,8.16,159.26,159.2,26.69]
[1754158129534,0.66,159.25,159.21,26.0]
[1754158129825,8.16,159.26,159.24,18.50330876]
[1754158130127,8.16,159.28,159.25,18.50330876]
[1754158130430,8.16,159.29,159.27,18.50330876]
[1754158130604,9.52733458,159.31,159.28,18.50330876]
[1754158130807,8.86733458,159.31,159.3,12.15913341]
[1754158131131,0.03,159.31,159.3,12.15913341]
[1754158132358,0.03,159.34,159.3,12.84913341]
[1754158132648,0.03,159.34,159.31,0.31401076]
[1754158132818,0.03,159.34,159.33,12.15913341]
[1754158133603,0.69,159.34,159.33,12.15913341]
[1754158133806,0.03,159.34,159.33,12.15913341]
[1754158134046,0.69,159.34,159.33,12.15913341]
[1754158134401,0.03,159.34,159.33,12.15913341]
[1754158134923,0.69,159.34,159.29,26.31397139]
[1754158135124,13.29938799,159.33,159.28,12.15913341]
[1754158135330,4.48565354,159.32,159.27,26.0]
[1754158135529,12.64435835,159.31,159.3,12.15913341]
[1754158135840,13.30435835,159.31,159.3,12.15913341]
[1754158136021,8.16,159.3,159.29,12.15913341]
[1754158136222,13.30435835,159.3,159.29,12.15913341]
[1754158136415,12.64435835,159.3,159.29,12.15913341]
[1754158136604,4.48435835,159.3,159.28,12.15913341]
[1754158136926,8.19,159.34,159.29,13.16341999]
[1754158137097,0.03,159.34,159.33,12.15913341]
[1754158137310,8.16,159.31,159.29,0.31428658]
[1754158137508,8.19,159.34,159.3,12.15913341]
[1754158137738,8.19,159.34,159.33,12.15913341]
[1754158137941,8.19,159.34,159.28,12.47308511]
[1754158137942,8.16,159.33,159.28,12.47308511]
[1754158138144,8.16,159.33,159.28,0.3139517]
[1754158138314,8.16,159.33,159.28,1.0039517]
[1754158138517,0.03,159.34,159.29,0.69]
[1754158138812,8.16,159.33,159.27,0.3141093]
[1754158139024,8.16,159.31,159.28,12.15913341]
[1754158139235,8.77,159.31,159.28,12.15913341]
[1754158139440,8.77,159.3,159.28,12.15913341]
[1754158139829,8.16,159.27,159.24,12.15913341]
[1754158140046,8.77,159.27,159.24,12.15913341]
[1754158140356,8.16,159.28,159.26,12.15913341]
[1754158140523,8.19,159.29,159.27,12.15913341]
[1754158140834,8.19,159.29,159.21,26.37472044]
[1754158140835,8.16,159.27,159.24,12.15913341]
[1754158141149,8.16,159.24,159.21,0.06]
[1754158141364,8.16,159.24,159.23,12.15913341]
[1754158141521,8.16,159.25,159.23,12.15913341]
[1754158141724,8.16,159.24,159.23,12.15913341]
[1754158141962,8.16,159.24,159.21,0.06]
[1754158142128,8.16,159.22,159.21,0.06]
[1754158142635,1.29502794,159.23,159.21,0.06]
[1754158142636,8.16,159.23,159.21,12.21913341]
[1754158142825,0.78483079,159.27,159.21,0.06]
[1754158142826,9.45507725,159.22,159.21,0.06]
[1754158143941,42.44063227,159.22,159.21,0.06]
[1754158144759,42.44063227,159.22,159.19,0.06]
[1754158144760,34.16,159.2,159.19,0.06]
[1754158145056,115.51073089,159.2,159.19,0.06]
[1754158145223,115.96073089,159.2,159.19,0.06]
[1754158146340,68.38073089,159.2,159.19,0.06]
[1754158146546,115.94073089,159.2,159.19,0.06]
[1754158146741,56.22159748,159.2,159.19,0.06]
[1754158147059,103.78159748,159.2,159.19,0.06]
[1754158147279,55.77159748,159.2,159.19,0.06]
[1754158147479,86.54691351,159.2,159.19,0.06]
[1754158148063,60.54691351,159.2,159.19,0.06]
[1754158148765,12.63924539,159.2,159.19,19.3759495]
[1754158148966,8.16,159.2,159.19,18.6859495]
[1754158149159,47.54,159.22,159.19,18.6859495]
[1754158149485,55.7,159.22,159.19,0.75]
[1754158149683,8.16,159.24,159.2,0.69]
[1754158149855,8.16,159.24,159.21,0.31499637]
[1754158150186,55.75,159.29,159.22,0.69]
[1754158150390,55.75,159.29,159.23,0.31468091]
[1754158150555,55.75,159.29,159.28,18.6259495]
[1754158150556,47.59,159.29,159.28,18.6259495]
[1754158150755,0.03,159.29,159.28,19.3159495]
[1754158150955,0.03,159.29,159.21,16.78468397]
[1754158150956,8.16,159.27,159.22,0.69]
[1754158151172,8.16,159.26,159.23,0.69]
[1754158151384,0.03,159.29,159.25,18.6259495]
[1754158151667,0.03,159.29,159.26,19.3159495]
[1754158151866,0.03,159.29,159.27,0.69]
[1754158152076,0.03,159.29,159.28,0.69]
[1754158152571,8.19,159.29,159.28,0.69]
[1754158152899,8.19,159.29,159.24,0.69]
[1754158152900,75.58068174,159.29,159.24,0.69]
[1754158153209,75.58068174,159.29,159.21,2.517862]
[1754158153210,26.7859495,159.25,159.21,0.69]
[1754158153357,8.16,159.26,159.24,18.6259495]
[1754158153689,48.14,159.27,159.25,19.3159495]
[1754158153857,8.16,159.28,159.25,0.69]
[1754158153858,8.16,159.26,159.25,0.69]
[1754158154052,56.28,159.26,159.24,18.6259495]
[1754158154254,56.28,159.26,159.22,0.69]
[1754158154489,8.16,159.24,159.19,26.75]
[1754158154792,8.16,159.24,159.21,18.6259495]
[1754158154965,8.16,159.2,159.19,0.06]
[1754158155168,43.57063347,159.2,159.19,0.06]
[1754158155376,49.28420923,159.2,159.19,0.06]
[1754158155586,101.57369283,159.2,159.19,0.06]
[1754158156107,101.57369283,159.2,159.08,0.69]
[1754158156108,8.16,159.1,159.08,0.69]
[1754158156262,8.16,159.09,159.08,0.69]
[1754158156460,8.16,159.09,159.08,19.3159495]
[1754158156766,56.4,159.1,159.08,18.6259495]
[1754158156967,8.16,159.09,159.08,18.6259495]
[1754158157661,8.16,159.09,159.08,19.3159495]
[1754158157878,8.16,159.09,159.08,18.6259495]
[1754158158792,8.16,159.09,159.05,18.7259495]
[1754158158793,8.16,159.06,159.05,18.7259495]
[1754158159383,8.16,159.06,159.05,0.1]
[1754158159684,8.16,159.06,159.05,18.7259495]
[1754158160392,8.16,159.06,159.05,0.1]
[1754158160762,8.16,159.06,159.05,18.7259495]
[1754158160961,8.16,159.06,159.05,0.1]
[1754158161201,56.36,159.06,159.05,18.7259495]
[1754158161368,8.16,159.06,159.05,0.1]
[1754158161568,8.16,159.06,159.05,19.4159495]
[1754158163292,48.08,159.1,159.05,19.4159495]